bitfinex/quotes_BTCUSD_20250101
["timestamp","ask_amount","ask_price","bid_price","bid_amount"]
[1735744789276,4.966e-05,94309.0,94294.0,0.10898632]
[1735744790050,4.966e-05,94309.0,94295.0,0.01089863]
[1735744790321,4.966e-05,94309.0,94296.0,0.10398632]
[1735744790522,4.966e-05,94309.0,94296.0,0.0440333]
[1735744791343,0.00013486,94309.0,94296.0,0.0440333]
[1735744791954,0.00013486,94309.0,94297.0,0.023]
[1735744792160,0.00013486,94309.0,94298.0,0.11179655]
[1735744792942,0.00013486,94309.0,94298.0,0.10398632]
[1735744794347,0.00013486,94309.0,94299.0,0.023]
[1735744794486,0.00013486,94309.0,94301.0,0.023]
[1735744794688,0.00013486,94309.0,94302.0,0.10398632]
[1735744795294,0.00013486,94309.0,94303.0,0.023]
[1735744795518,0.00013486,94309.0,94305.0,0.023]
[1735744795722,0.00013486,94309.0,94307.0,0.023]
[1735744795922,0.00013486,94309.0,94308.0,0.10398632]
[1735744796543,0.212053,94316.0,94308.0,0.10398632]
[1735744796919,0.15,94322.0,94308.0,0.10398632]
[1735744797513,0.212041,94321.0,94308.0,0.10398632]
[1735744797938,8.53e-05,94327.0,94309.0,0.11279863]
[1735744798119,0.001,94322.0,94311.0,0.023]
[1735744798326,0.001,94322.0,94313.0,0.023]
[1735744798549,0.002,94322.0,94314.0,0.10398632]
[1735744799276,0.00204965,94322.0,94314.0,0.10398632]
[1735744799423,0.00104965,94322.0,94314.0,0.10398632]
[1735744799625,4.965e-05,94322.0,94314.0,0.10398632]
[1735744799826,4.965e-05,94322.0,94314.0,0.10798632]
[1735744800309,4.965e-05,94322.0,94314.0,0.004]
[1735744800310,0.15,94319.0,94314.0,0.004]
[1735744800510,0.15,94317.0,94300.0,0.09543544]
[1735744800714,0.212081,94304.0,94300.0,0.09543544]
[1735744801092,0.424162,94304.0,94300.0,0.09543544]
[1735744801291,0.212081,94304.0,94279.0,0.0794]
[1735744801614,0.212091,94299.0,94294.0,0.10415672]
[1735744802672,0.212081,94304.0,94294.0,0.10415672]
[1735744802854,0.212081,94304.0,94294.0,0.10815672]
[1735744803550,0.212081,94304.0,94295.0,0.01081567]
[1735744803855,0.15,94318.0,94296.0,0.10398632]
[1735744804067,0.15,94316.0,94308.0,0.0001706]
[1735744804626,0.0008294,94304.0,94297.0,0.023]
[1735744804813,0.0008294,94304.0,94298.0,0.10398632]
[1735744805958,0.15,94314.0,94298.0,0.10698632]
[1735744806314,0.001,94316.0,94299.0,0.023]
[1735744806553,0.001,94316.0,94301.0,0.023]
[1735744806754,0.001,94316.0,94303.0,0.023]
[1735744807056,0.21217495,94322.0,94305.0,0.023]
[1735744807280,0.001,94314.0,94307.0,0.023]
[1735744807489,0.001,94314.0,94309.0,0.023]
[1735744807694,0.00013495,94322.0,94309.0,0.12698632]
[1735744808130,0.001,94314.0,94313.0,0.023]
[1735744808332,0.001,94316.0,94315.0,0.023]
[1735744808541,0.001,94316.0,94315.0,0.12698632]
[1735744809429,0.00013495,94322.0,94315.0,0.12698632]
[1735744809631,0.00013495,94322.0,94321.0,0.41602732]
[1735744809775,0.00013495,94322.0,94321.0,0.51662732]
[1735744811232,0.00013495,94322.0,94321.0,0.51862732]
[1735744811567,0.00013495,94322.0,94321.0,0.52662732]
[1735744817750,0.00013495,94322.0,94321.0,0.31458632]
[1735744819258,0.00013495,94322.0,94321.0,0.13698632]
[1735744830595,0.00013495,94322.0,94321.0,0.20087241]
[1735744831438,0.00013495,94322.0,94321.0,0.13698632]
[1735744836031,0.00013495,94322.0,94321.0,0.36668632]
[1735744839830,0.00013495,94322.0,94321.0,0.26668632]
[1735744840265,0.00013495,94322.0,94321.0,0.21968632]
[1735744845986,0.00013495,94322.0,94321.0,0.13698632]
[1735744851123,0.00013495,94322.0,94321.0,0.34902732]
[1735744851397,0.00013495,94322.0,94321.0,0.42635751]
[1735744852252,0.00013495,94322.0,94321.0,0.34902732]
[1735744852452,0.00013495,94322.0,94321.0,0.13698632]
[1735744854241,0.00013495,94322.0,94321.0,0.11398632]
[1735744854446,0.12803495,94322.0,94321.0,0.11398632]
[1735744854651,0.12803495,94322.0,94321.0,0.01]
[1735744855952,0.12803495,94322.0,94314.0,0.0001706]
[1735744856225,0.12803495,94322.0,94321.0,0.002]
[1735744857918,0.12803495,94322.0,94315.0,0.10398632]
[1735744859235,0.12803495,94322.0,94321.0,0.002]
[1735744859786,0.12803495,94322.0,94315.0,0.10398632]
[1735744860367,0.12803495,94322.0,94315.0,0.10598632]
[1735744861923,0.00013495,94322.0,94316.0,0.03361569]
[1735744862139,0.00013495,94322.0,94317.0,0.10398632]
[1735744863525,0.00013495,94322.0,94317.0,0.10598632]
[1735744864128,0.00013495,94322.0,94318.0,0.447093]
[1735744864329,0.00013495,94322.0,94318.0,0.55107932]
[1735744864531,0.00013495,94322.0,94320.0,0.235044]
[1735744864715,0.00013495,94322.0,94321.0,0.12698632]
[1735744866277,0.00013495,94322.0,94321.0,0.13498632]
[1735744867278,0.00013495,94322.0,94321.0,0.21277456]
[1735744867486,0.00013495,94322.0,94321.0,0.21477456]
[1735744867692,0.00013495,94322.0,94321.0,0.31477456]
[1735744867935,0.00013495,94322.0,94321.0,0.41477456]
[1735744870127,0.00013495,94322.0,94321.0,0.90948083]
[1735744870931,0.00013495,94322.0,94321.0,0.49107456]
[1735744871328,0.00013495,94322.0,94321.0,0.63422772]
[1735744872002,0.00013495,94322.0,94321.0,0.63222772]
[1735744872207,0.00013495,94322.0,94321.0,0.88499168]
[1735744872403,0.00013495,94322.0,94321.0,0.89399168]
[1735744872811,0.00013495,94322.0,94321.0,0.88499168]
[1735744873016,0.00013495,94322.0,94321.0,1.13258028]
[1735744873459,0.00013495,94322.0,94321.0,1.05479204]
[1735744873658,0.00013495,94322.0,94321.0,1.05979204]
[1735744873949,0.00013495,94322.0,94321.0,1.06479204]
[1735744874768,0.00013495,94322.0,94321.0,1.05979204]
[1735744874973,0.00013495,94322.0,94321.0,1.04179204]
[1735744875124,0.00013495,94322.0,94321.0,1.04679204]
[1735744875334,0.00013495,94322.0,94321.0,1.15977836]
[1735744875519,0.00013495,94322.0,94321.0,1.15477836]
[1735744875960,0.00013495,94322.0,94321.0,1.05079204]
[1735744877234,0.00013495,94322.0,94321.0,1.05579204]
[1735744877431,0.00013495,94322.0,94321.0,0.81720344]
[1735744878018,0.00013495,94322.0,94321.0,0.81220344]
[1735744878385,0.00013495,94322.0,94321.0,0.80820344]
[1735744878803,0.00013495,94322.0,94321.0,0.80320344]
[1735744879208,0.00013495,94322.0,94321.0,0.90718976]
[1735744879543,0.00013495,94322.0,94321.0,1.15477836]
[1735744879979,0.00013495,94322.0,94321.0,1.14577836]
[1735744880293,0.00013495,94322.0,94321.0,1.15977836]
[1735744880702,0.00013495,94322.0,94321.0,1.15477836]
[1735744880921,0.00013495,94322.0,94321.0,1.05079204]
[1735744881147,0.00013495,94322.0,94321.0,1.05579204]
[1735744883030,0.00013495,94322.0,94321.0,0.81720344]
[1735744885246,0.00013495,94322.0,94321.0,0.81220344]
[1735744885448,0.00013495,94322.0,94321.0,0.80320344]
[1735744885649,0.00013495,94322.0,94321.0,0.91218976]
[1735744885868,0.00013495,94322.0,94321.0,0.81720344]
[1735744887456,0.15,94358.0,94330.0,0.023]
[1735744887624,0.15,94358.0,94335.0,0.023]
[1735744887625,0.15,94356.0,94335.0,0.023]
[1735744887832,0.15,94358.0,94337.0,0.023]
[1735744888006,0.15,94358.0,94339.0,0.023]
[1735744888214,0.18572747,94358.0,94341.0,0.023]
[1735744888417,0.18572747,94358.0,94342.0,0.10398632]
[1735744891722,0.15,94358.0,94342.0,0.10398632]
[1735744892503,0.15,94356.0,94342.0,0.10398632]
[1735744892663,0.21210699,94359.0,94342.0,0.10398632]
[1735744893559,0.21196,94357.0,94342.0,0.10398632]
[1735744893788,0.15,94356.0,94342.0,0.10398632]
[1735744896379,0.15,94356.0,94343.0,0.023]
[1735744896380,0.21121192,94356.0,94343.0,0.023]
[1735744896554,0.21121192,94356.0,94344.0,0.10398632]
[1735744897033,0.15,94356.0,94344.0,0.10398632]
[1735744899295,0.704075,94345.0,94342.0,0.0001706]
[1735744899497,0.15,94344.0,94342.0,0.0001706]
[1735744899699,0.211992,94343.0,94342.0,0.0001706]
[1735744900456,0.211992,94343.0,94342.0,0.0011706]
[1735744900882,0.211992,94343.0,94342.0,0.0001706]
[1735744904260,0.213992,94343.0,94342.0,0.0001706]
[1735744904479,0.213992,94343.0,94342.0,0.0011706]
[1735744904724,0.213992,94343.0,94342.0,0.0001706]
[1735744905524,0.211992,94343.0,94342.0,0.0001706]
[1735744906189,0.212992,94343.0,94342.0,0.0001706]
[1735744906462,0.211992,94343.0,94342.0,0.0001706]
[1735744906897,0.212992,94343.0,94342.0,0.0001706]
[1735744909422,0.001,94343.0,94342.0,0.0001706]
[1735744914778,0.0715064,94343.0,94342.0,0.0001706]
[1735744914933,0.001,94343.0,94342.0,0.0001706]
[1735744918525,0.342087,94345.0,94342.0,0.0001706]
[1735744919317,0.001,94343.0,94342.0,0.0001706]
[1735744919727,0.642012,94343.0,94342.0,0.0001706]
[1735744919900,0.718776,94343.0,94342.0,0.0001706]
[1735744922119,0.719776,94343.0,94342.0,0.0001706]
[1735744924288,0.642368,94343.0,94342.0,0.0001706]
[1735744925831,0.515038,94343.0,94342.0,0.0001706]
[1735744926857,0.151,94343.0,94342.0,0.0001706]
[1735744927075,0.001,94343.0,94342.0,0.0001706]
[1735744928162,0.15,94353.0,94342.0,0.0001706]
[1735744928360,0.15,94351.0,94342.0,0.0001706]
[1735744928548,0.001,94343.0,94342.0,0.0001706]
[1735744928957,0.15,94351.0,94342.0,0.0001706]
[1735744930301,0.001,94351.0,94342.0,0.0001706]
[1735744932735,0.15,94350.0,94342.0,0.0001706]
[1735744932943,0.2704691,94351.0,94342.0,0.0001706]
[1735744933149,0.15,94350.0,94342.0,0.0001706]
[1735744935825,0.151,94350.0,94342.0,0.0001706]
[1735744937174,0.15,94348.0,94342.0,0.0001706]
[1735744937522,0.0574949,94347.0,94342.0,0.0001706]
[1735744937945,0.15,94348.0,94342.0,0.0001706]
[1735744938882,0.151,94348.0,94342.0,0.0001706]
[1735744939237,0.15,94346.0,94342.0,0.0001706]
[1735744939436,0.211987,94345.0,94342.0,0.0001706]
[1735744940704,0.211991,94344.0,94342.0,0.0001706]
[1735744941147,0.642152,94343.0,94342.0,0.0001706]
[1735744941347,0.64251961,94343.0,94342.0,0.0001706]
[1735744942671,0.64351961,94343.0,94342.0,0.0001706]
[1735744942901,0.72211961,94343.0,94342.0,0.0001706]
[1735744943626,0.95415088,94343.0,94342.0,6e-07]
[1735744943841,0.6124852,94343.0,94342.0,6e-07]
[1735744944470,0.6144852,94343.0,94342.0,6e-07]
[1735744944671,0.1,94338.0,94314.0,0.0001706]
[1735744944890,0.0786,94335.0,94314.0,0.0001706]
[1735744945115,0.212043,94321.0,94314.0,0.0001706]
[1735744945260,0.0212043,94320.0,94314.0,0.0001706]
[1735744946088,0.0212043,94320.0,94314.0,0.0011706]
[1735744946288,0.212046,94319.0,94314.0,0.0011706]
[1735744946708,0.0212043,94320.0,94314.0,0.0011706]
[1735744947095,0.21120311,94319.0,94314.0,0.0011706]
[1735744947314,0.04444504,94318.0,94314.0,0.0011706]
[1735744947529,0.04444504,94318.0,94314.0,0.0001706]
[1735744947837,0.04444504,94318.0,94314.0,0.0031706]
[1735744948246,0.04444504,94318.0,94314.0,0.0001706]
[1735744948484,0.04444504,94318.0,94314.0,0.0031706]
[1735744949233,0.15,94323.0,94314.0,0.0031706]
[1735744949418,0.65089,94323.0,94314.0,0.0031706]
[1735744949650,0.315814,94322.0,94314.0,0.0031706]
[1735744950742,0.212041,94321.0,94314.0,0.0031706]
[1735744952157,0.213041,94321.0,94314.0,0.0001706]
[1735744952366,0.0621576,94320.0,94314.0,0.0001706]
[1735744953480,0.001,94321.0,94315.0,0.08]
[1735744953687,0.001,94321.0,94315.0,0.18398632]
[1735744954114,0.15,94332.0,94315.0,0.18398632]
[1735744954548,0.001,94320.0,94315.0,0.18398632]
[1735744954956,0.15,94330.0,94315.0,0.18398632]
[1735744955166,0.02013412,94331.0,94315.0,0.18398632]
[1735744955780,8.53e-05,94321.0,94315.0,0.18398632]
[1735744956058,0.001,94320.0,94315.0,0.18398632]
[1735744957377,8.53e-05,94321.0,94315.0,0.18398632]
[1735744958222,8.53e-05,94321.0,94315.0,0.11073155]
[1735744959267,0.0010853,94321.0,94315.0,0.11173155]
[1735744959712,0.07887521,94335.0,94315.0,0.11173155]
[1735744959912,0.212017,94332.0,94315.0,0.14414533]
[1735744960125,0.212017,94332.0,94315.0,0.11173155]
[1735744961069,0.212017,94332.0,94315.0,0.11073155]
[1735744961477,0.212012,94334.0,94315.0,0.11073155]
[1735744961704,0.353646,94333.0,94315.0,0.11073155]
[1735744961907,0.15,94331.0,94315.0,0.11073155]
[1735744962747,0.212023,94329.0,94315.0,0.10398632]
[1735744962949,0.15,94331.0,94315.0,0.10398632]
[1735744963181,0.15,94331.0,94316.0,0.0819]
[1735744963389,0.001,94332.0,94317.0,0.10398632]
[1735744963596,0.001,94332.0,94321.0,0.023]
[1735744963811,0.001,94332.0,94323.0,0.1049]
[1735744963987,0.211969,94354.0,94327.0,0.0819]
[1735744964276,0.001,94331.0,94328.0,0.10398632]
[1735744964602,0.15,94348.0,94328.0,0.10398632]
[1735744965178,0.001,94332.0,94328.0,0.10398632]
[1735744965565,0.15,94348.0,94328.0,0.10398632]
[1735744965735,0.152,94348.0,94328.0,0.10398632]
[1735744966340,0.15,94346.0,94328.0,0.10398632]
[1735744967104,0.0575963,94345.0,94328.0,0.10398632]
[1735744967310,0.0575963,94345.0,94328.0,0.10498632]
[1735744967967,0.0575963,94345.0,94328.0,0.10398632]
[1735744968395,0.1540853,94346.0,94328.0,0.10398632]
[1735744968550,0.1520853,94346.0,94328.0,0.10398632]
[1735744968888,0.002,94345.0,94328.0,0.10398632]
[1735744969671,0.003,94345.0,94328.0,0.10398632]
[1735744970331,0.001,94345.0,94328.0,0.10398632]
[1735744970507,0.21199,94344.0,94328.0,0.10398632]
[1735744972010,0.24789285,94344.0,94328.0,0.10398632]
[1735744973631,0.002,94344.0,94330.0,0.0827]
[1735744973837,0.002,94344.0,94331.0,0.10398632]
[1735744974642,0.1500853,94346.0,94331.0,0.10398632]
[1735744974843,0.002,94344.0,94331.0,0.10398632]
[1735744976458,0.15,94344.0,94331.0,0.10398632]
[1735744976757,0.211992,94343.0,94331.0,0.10398632]
[1735744977016,0.152,94344.0,94331.0,0.10398632]
[1735744977768,0.15,94344.0,94331.0,0.10398632]
[1735744977976,0.001,94343.0,94331.0,0.10398632]
[1735744979325,0.15,94344.0,94331.0,0.10398632]
[1735744979464,0.211992,94343.0,94331.0,0.10398632]
[1735744980747,0.212992,94343.0,94331.0,0.10398632]
[1735744981812,0.26681959,94343.0,94331.0,0.10398632]
[1735744982996,0.211987,94345.0,94331.0,0.10398632]
[1735744983609,0.211992,94343.0,94331.0,0.10398632]
[1735744985552,0.21204165,94343.0,94331.0,0.10398632]
[1735744986111,0.21304165,94343.0,94331.0,0.10398632]
[1735744989668,0.2410734,94342.0,94328.0,0.0001706]
[1735744989862,0.211999,94340.0,94328.0,0.10415692]
[1735744990736,0.212018,94332.0,94328.0,0.10415692]
[1735744991346,0.212011,94335.0,94328.0,0.10415692]
[1735744991569,0.001,94342.0,94329.0,0.10398632]
[1735744991769,0.211996,94341.0,94330.0,0.076]
[1735744991997,0.211996,94341.0,94331.0,0.10398632]
[1735744992547,0.001,94340.0,94331.0,0.10398632]
[1735744992750,0.001,94340.0,94331.0,0.12450201]
[1735744993073,4.965e-05,94343.0,94331.0,0.10398632]
[1735744993229,0.001,94341.0,94331.0,0.10398632]
[1735744993818,4.965e-05,94343.0,94331.0,0.10398632]
[1735744993987,0.001,94340.0,94331.0,0.10398632]
[1735744994839,0.001,94340.0,94331.0,0.10598632]
[1735744995543,0.001,94340.0,94331.0,0.10615692]
[1735744995676,0.21204365,94343.0,94331.0,0.10615692]
[1735744995876,0.001,94341.0,94331.0,0.10615692]
[1735744996440,0.21204365,94343.0,94331.0,0.10415692]
[1735744996880,0.001,94340.0,94331.0,0.10415692]
[1735744997507,0.21204365,94343.0,94331.0,0.10415692]
[1735744998383,0.21204365,94343.0,94331.0,0.10615692]
[1735744998754,0.21304365,94343.0,94331.0,0.10615692]
[1735744998953,0.21304365,94343.0,94331.0,0.10415692]
[1735745000459,0.212013,94334.0,94331.0,0.0001706]
[1735745000664,0.424026,94334.0,94331.0,0.0001706]
[1735745000869,0.212017,94332.0,94331.0,0.0001706]
[1735745001068,0.415386,94332.0,94331.0,0.0001706]
[1735745002286,0.415386,94332.0,94331.0,0.0051706]
[1735745002640,0.415386,94332.0,94331.0,0.0001706]
[1735745002835,0.416386,94332.0,94331.0,0.0001706]
[1735745003461,0.415386,94332.0,94331.0,0.0001706]
[1735745003660,0.418386,94332.0,94331.0,0.0001706]
[1735745004818,0.339187,94332.0,94331.0,0.0001706]
[1735745005049,0.215017,94332.0,94331.0,0.0001706]
[1735745005248,0.212017,94332.0,94331.0,0.0001706]
[1735745005568,0.003,94332.0,94331.0,0.0001706]
[1735745005808,0.003,94332.0,94331.0,0.10415692]
[1735745005991,4.965e-05,94343.0,94331.0,0.17485692]
[1735745006379,4.965e-05,94343.0,94333.0,0.023]
[1735745006562,4.965e-05,94343.0,94334.0,0.10398632]
[1735745006749,4.965e-05,94343.0,94334.0,0.10298632]
[1735745007266,0.00204965,94343.0,94334.0,0.10298632]
[1735745007439,0.00304965,94343.0,94334.0,0.10298632]
[1735745008679,4.965e-05,94343.0,94334.0,0.10298632]
[1735745008880,0.00104965,94343.0,94334.0,0.10298632]
[1735745009493,4.965e-05,94343.0,94334.0,0.10298632]
[1735745009695,0.00104965,94343.0,94334.0,0.10298632]
[1735745014829,4.965e-05,94343.0,94334.0,0.10298632]
[1735745015022,0.00104965,94343.0,94334.0,0.10398632]
[1735745019537,0.00104965,94343.0,94335.0,0.023]
[1735745019742,0.00104965,94343.0,94339.0,0.023]
[1735745019944,0.00104965,94343.0,94341.0,0.023]
[1735745020149,0.00104965,94343.0,94342.0,0.12698632]
[1735745021311,4.965e-05,94343.0,94342.0,0.12698632]
[1735745021712,0.00104965,94343.0,94342.0,0.12698632]
[1735745022128,4.965e-05,94343.0,94342.0,0.12698632]
[1735745022532,4.965e-05,94343.0,94342.0,0.12998632]
[1735745022736,0.00104965,94343.0,94342.0,0.13898632]
[1735745023840,0.00104965,94343.0,94342.0,0.13598632]
[1735745024395,0.00104965,94343.0,94342.0,0.13898632]
[1735745025352,4.965e-05,94343.0,94342.0,0.12998632]
[1735745025750,4.965e-05,94343.0,94342.0,0.13898632]
[1735745025955,0.00104965,94343.0,94342.0,0.13898632]
[1735745033916,0.00113495,94343.0,94342.0,0.13898632]
[1735745038443,0.07873495,94343.0,94342.0,0.13898632]
[1735745038652,0.00113495,94343.0,94342.0,0.11598632]
[1735745043938,0.00113495,94343.0,94342.0,0.15846495]
[1735745044154,0.00113495,94343.0,94342.0,0.13898632]
[1735745044459,0.00113495,94343.0,94342.0,0.35098032]
[1735745045048,0.00113495,94343.0,94342.0,0.42978032]
[1735745050045,0.00113495,94343.0,94342.0,0.52978032]
[1735745050727,0.00113495,94343.0,94342.0,0.52678032]
[1735745051066,0.00113495,94343.0,94342.0,0.88117522]
[1735745051947,0.00113495,94343.0,94342.0,0.87217522]
[1735745052238,0.00013495,94343.0,94342.0,0.87217522]
[1735745052443,0.00113495,94343.0,94342.0,0.87817522]
[1735745052643,0.00113495,94343.0,94342.0,1.28326154]
[1735745053640,0.00013495,94343.0,94342.0,1.27026154]
[1735745053854,0.00013495,94343.0,94342.0,1.76601637]
[1735745054042,0.0002,94369.0,94359.0,0.457656]
[1735745054243,0.0002,94369.0,94359.0,0.56164232]
[1735745055053,0.0002,94369.0,94359.0,0.91303722]
[1735745055664,0.0002,94369.0,94359.0,1.15077963]
[1735745055840,0.0002,94369.0,94359.0,0.92807963]
[1735745056447,0.00013495,94360.0,94359.0,0.34394232]
[1735745056988,0.00013495,94360.0,94359.0,0.35294232]
[1735745057198,0.00013495,94360.0,94359.0,0.44802794]
[1735745058786,0.00013495,94360.0,94359.0,0.21307194]
[1735745058988,0.00013495,94360.0,94359.0,0.11798632]
[1735745059306,0.00013495,94360.0,94359.0,0.14098632]
[1735745059691,0.00013495,94360.0,94359.0,0.13598632]
[1735745059890,0.00013495,94360.0,94359.0,0.12698632]
[1735745060091,0.00013495,94360.0,94359.0,0.14098632]
[1735745060288,0.00013495,94360.0,94359.0,0.13198632]
[1735745060537,0.00013495,94360.0,94359.0,0.12698632]
[1735745060964,0.00013495,94360.0,94359.0,0.13398632]
[1735745062813,0.00013495,94360.0,94359.0,0.13598632]
[1735745063215,0.00013495,94360.0,94359.0,0.6287102]
[1735745063627,0.00013495,94360.0,94359.0,0.63270018]
[1735745064034,0.00013495,94360.0,94359.0,0.62570018]
[1735745064281,9.5e-07,94360.0,94359.0,1.53450018]
[1735745064482,9.5e-07,94360.0,94359.0,1.68614002]
[1735745064690,9.5e-07,94360.0,94359.0,1.68414002]
[1735745064917,9.5e-07,94360.0,94359.0,2.13011997]
[1735745065212,9.5e-07,94360.0,94359.0,2.14275407]
[1735745065574,9.5e-07,94360.0,94359.0,2.12612999]
[1735745065804,9.5e-07,94360.0,94359.0,2.06948609]
[1735745066181,9.5e-07,94360.0,94359.0,1.88138758]
[1735745066530,9.5e-07,94360.0,94359.0,1.88838758]
[1735745066878,9.5e-07,94360.0,94359.0,1.89638758]
[1735745067160,9.5e-07,94360.0,94359.0,1.88738758]
[1735745067361,9.5e-07,94360.0,94359.0,1.8833759]
[1735745067532,9.5e-07,94360.0,94359.0,1.8923759]
[1735745067742,9.5e-07,94360.0,94359.0,2.04392616]
[1735745068311,9.5e-07,94360.0,94359.0,1.55049852]
[1735745068731,9.5e-07,94360.0,94359.0,1.56713088]
[1735745068927,9.5e-07,94360.0,94359.0,1.57351574]
[1735745069142,8.625e-05,94360.0,94359.0,1.7469504]
[1735745069358,8.625e-05,94360.0,94359.0,1.57628252]
[1735745069702,8.625e-05,94360.0,94359.0,1.55328252]
[1735745069923,8.625e-05,94360.0,94359.0,1.44923081]
[1735745070128,8.625e-05,94360.0,94359.0,1.46323081]
[1735745070460,8.625e-05,94360.0,94359.0,1.56584395]
[1735745070665,8.625e-05,94360.0,94359.0,1.47082864]
[1735745071001,8.625e-05,94360.0,94359.0,1.47982864]
[1735745071567,8.625e-05,94360.0,94359.0,2.32126588]
[1735745071764,0.0002,94369.0,94368.0,0.35]
[1735745071991,0.0002,94369.0,94368.0,0.72392232]
[1735745072445,8.52e-05,94404.0,94368.0,0.72392232]
[1735745072446,0.210876,94407.0,94376.0,0.1]
[1735745072672,0.21137286,94407.0,94385.0,0.023]
[1735745072881,0.21137286,94407.0,94387.0,0.023]
[1735745072999,0.21137286,94407.0,94389.0,0.023]
[1735745073206,0.21137286,94407.0,94391.0,0.023]
[1735745073404,0.21137286,94407.0,94392.0,0.10398632]
[1735745073999,0.1301,94401.0,94392.0,0.10398632]
[1735745074198,0.361864,94400.0,94392.0,0.10398632]
[1735745074404,0.361864,94400.0,94387.0,0.004]
[1735745074405,0.0824,94396.0,94387.0,0.004]
[1735745074605,0.0824,94396.0,94388.0,0.10398632]
[1735745075879,0.0824,94396.0,94392.0,0.001]
[1735745076085,0.0824,94396.0,94392.0,0.005]
[1735745076590,0.0824,94396.0,94388.0,0.10398632]
[1735745076745,0.0824,94396.0,94388.0,0.10798632]
[1735745076949,0.0824,94396.0,94388.0,0.10498632]
[1735745077152,0.0824,94396.0,94388.0,0.10398632]
[1735745077537,0.0824,94396.0,94392.0,0.001]
[1735745077744,0.211875,94395.0,94392.0,0.001]
[1735745077950,0.0824,94396.0,94392.0,0.001]
[1735745078356,0.0824,94396.0,94392.0,0.004]
[1735745078849,0.211875,94395.0,94375.0,0.023]
[1735745079041,0.211875,94395.0,94377.0,0.023]
[1735745079251,0.211875,94395.0,94388.0,0.001]
[1735745079457,0.0824,94396.0,94388.0,0.001]
[1735745079607,0.0824,94396.0,94378.0,0.10398632]
[1735745079813,0.0834,94396.0,94378.0,0.10398632]
[1735745080158,0.0824,94396.0,94378.0,0.10398632]
[1735745080715,0.0703838,94395.0,94378.0,0.10398632]
[1735745081138,0.0703838,94395.0,94378.0,0.10415692]
[1735745083687,0.2203838,94395.0,94378.0,0.10415692]
[1735745083927,0.15,94389.0,94378.0,0.10415692]
[1735745084142,0.0811,94387.0,94378.0,0.10415692]
[1735745085360,0.0811,94387.0,94378.0,0.10815692]
[1735745085616,0.16693,94386.0,94378.0,0.10815692]
[1735745085817,0.0465,94386.0,94378.0,0.10815692]
[1735745086230,0.0954488,94386.0,94378.0,0.0041706]
[1735745086431,0.0465,94386.0,94378.0,0.0041706]
[1735745086607,0.0465,94386.0,94378.0,0.0001706]
[1735745086812,0.0465,94386.0,94378.0,0.0011706]
[1735745087173,0.0465,94386.0,94363.0,0.211947]
[1735745087377,0.0465,94386.0,94364.0,0.10398632]
[1735745087771,0.0465,94386.0,94365.0,0.211942]
[1735745087974,0.0465,94386.0,94366.0,0.10398632]
[1735745089139,0.0465,94386.0,94378.0,0.004]
[1735745089559,0.0465,94386.0,94366.0,0.10398632]
[1735745089756,0.0475,94386.0,94366.0,0.10398632]
[1735745090119,0.0465,94386.0,94366.0,0.10398632]
[1735745090552,0.0475,94386.0,94366.0,0.10398632]
[1735745090894,0.1177373,94386.0,94366.0,0.10398632]
[1735745091976,0.1167373,94386.0,94366.0,0.10398632]
[1735745092344,0.0475,94386.0,94366.0,0.10398632]
[1735745092546,0.0475,94386.0,94367.0,0.211938]
[1735745092887,0.0475,94386.0,94368.0,0.10398632]
[1735745093356,0.0465,94386.0,94368.0,0.10398632]
[1735745093820,0.0475,94386.0,94368.0,0.10398632]
[1735745095479,0.0465,94386.0,94368.0,0.10398632]
[1735745095701,0.07023066,94385.0,94368.0,0.19886391]
[1735745095846,0.07074563,94385.0,94368.0,0.19886391]
[1735745096251,0.22604505,94390.0,94368.0,0.19886391]
[1735745096451,0.204453,94389.0,94368.0,0.10398632]
[1735745096679,0.06563802,94388.0,94368.0,0.10498632]
[1735745096886,0.22194602,94388.0,94368.0,0.10898632]
[1735745097084,0.06563802,94388.0,94368.0,0.10498632]
[1735745097288,0.06563802,94388.0,94368.0,0.10398632]
[1735745097482,0.265579,94387.0,94368.0,0.10598632]
[1735745097693,0.545223,94389.0,94368.0,0.10598632]
[1735745097984,0.567649,94389.0,94368.0,0.10598632]
[1735745098188,0.211891,94388.0,94368.0,0.10598632]
[1735745098404,0.422097,94387.0,94368.0,0.10398632]
[1735745098636,0.08598731,94386.0,94368.0,0.10398632]
[1735745098816,0.43353831,94386.0,94368.0,0.10398632]
[1735745099106,0.327551,94385.0,94368.0,0.10398632]
[1735745099310,0.0771,94384.0,94368.0,0.10398632]
[1735745099738,0.0771,94384.0,94368.0,0.10498632]
[1735745099929,0.04208753,94383.0,94368.0,0.10398632]
[1735745100268,0.206858,94382.0,94368.0,0.10698632]
[1735745100488,0.418762,94382.0,94368.0,0.10398632]
[1735745100703,0.256153,94381.0,94368.0,0.10398632]
[1735745100933,0.256153,94381.0,94368.0,0.10698632]
[1735745101135,0.08450425,94380.0,94368.0,0.10398632]
[1735745101359,0.211911,94379.0,94365.0,0.0001706]
[1735745101558,0.211911,94379.0,94368.0,0.004]
[1735745102009,0.08450425,94380.0,94368.0,0.004]
[1735745102211,0.35489293,94379.0,94368.0,0.004]
[1735745102421,0.06313093,94379.0,94368.0,0.004]
[1735745102640,0.479761,94378.0,94368.0,0.004]
[1735745102816,0.236774,94377.0,94366.0,0.10398632]
[1735745103298,0.236774,94377.0,94368.0,0.004]
[1735745103499,0.224728,94378.0,94366.0,0.10398632]
[1735745103705,0.211908,94381.0,94368.0,0.001]
[1735745103916,0.2271,94384.0,94369.0,0.01051569]
[1735745104117,0.2271,94384.0,94366.0,0.10398632]
[1735745104380,0.211902,94383.0,94366.0,0.10398632]
[1735745105052,0.211902,94383.0,94366.0,0.10498632]
[1735745106101,0.211902,94383.0,94366.0,0.10515692]
[1735745106301,0.211902,94383.0,94366.0,0.10415692]
[1735745107267,0.211902,94383.0,94367.0,0.0798]
[1735745107268,0.001,94383.0,94367.0,0.0798]
[1735745107495,0.001,94383.0,94368.0,0.10398632]
[1735745108133,0.15,94385.0,94368.0,0.10398632]
[1735745108624,0.211891,94388.0,94368.0,0.10398632]
[1735745108926,0.15,94387.0,94368.0,0.10398632]
[1735745109502,0.001,94383.0,94368.0,0.10398632]
[1735745109701,0.15,94385.0,94368.0,0.10398632]
[1735745110113,0.211895,94386.0,94368.0,0.10398632]
[1735745110754,0.211895,94386.0,94368.0,0.10598632]
[1735745111139,0.211895,94386.0,94368.0,0.10398632]